[Event "Championnat d'Europe Rapide"]
[Date "2024.12.08"]
[White "Pultinevicius, Paulius"]
[Black "Bulmaga, Irina"]
[WhiteElo "2579"]
[BlackElo "2386"]
[Round "10.24"]
[Result "0-1"]
[TimeControl "900+10"]

1. d4 {[%emt 00:00:04] [%clk 00:15:18]} Nf6 {[%clk 00:15:18]} 2. c4 {[%emt
00:00:02] [%clk 00:15:27]} e6 {[%emt 00:00:02] [%clk 00:15:27]} 3. Nc3 {[%emt
00:00:06] [%clk 00:15:30]} Bb4 {[%emt 00:00:02] [%clk 00:15:35]} 4. e3 {[%emt
00:00:03] [%clk 00:15:38]} O-O {[%emt 00:00:04] [%clk 00:15:41]} 5. Bd3 {[%emt
00:00:02] [%clk 00:15:46]} d5 {[%emt 00:00:02] [%clk 00:15:48]} 6. a3 {[%emt
00:00:04] [%clk 00:15:52]} Bxc3+ {[%emt 00:00:05] [%clk 00:15:53]} 7. bxc3
{[%emt 00:00:02] [%clk 00:16:00]} dxc4 {[%emt 00:00:09] [%clk 00:15:54]} 8. Bxc4
{[%emt 00:00:02] [%clk 00:16:09]} c5 {[%emt 00:00:03] [%clk 00:16:00]} 9. Ne2
{[%emt 00:00:18] [%clk 00:16:01]} Qc7 {[%emt 00:00:05] [%clk 00:16:06]} 10. Ba2
{[%emt 00:00:04] [%clk 00:16:07]} b6 {[%emt 00:00:21] [%clk 00:15:54]} 11. O-O
{[%emt 00:00:10] [%clk 00:16:07]} Rd8 {[%emt 00:00:19] [%clk 00:15:45]} 12. Bb2
{[%emt 00:00:14] [%clk 00:16:03]} Ba6 {[%emt 00:00:10] [%clk 00:15:45]} 13. Rc1
{[%emt 00:00:45] [%clk 00:15:28]} Nc6 {[%emt 00:00:30] [%clk 00:15:25]} 14. c4
{[%emt 00:06:30] [%clk 00:09:09]} cxd4 {[%emt 00:00:10] [%clk 00:15:24]} 15.
exd4 {[%emt 00:00:02] [%clk 00:09:17]} b5 {[%emt 00:00:18] [%clk 00:15:15]} 16.
d5 {[%emt 00:00:42] [%clk 00:08:46]} bxc4 {[%emt 00:00:26] [%clk 00:14:59]} 17.
Bxf6 {[%emt 00:00:31] [%clk 00:08:25]} Rxd5 {[%emt 00:02:01] [%clk 00:13:08]}
18. Bd4 {[%emt 00:01:35] [%clk 00:06:59]} Nxd4 {[%emt 00:01:12] [%clk 00:12:06]}
19. Nxd4 {[%emt 00:00:02] [%clk 00:07:08]} Qb6 {[%emt 00:00:47] [%clk 00:11:29]}
20. Bxc4 {[%emt 00:03:52] [%clk 00:03:26]} Rxd4 {[%emt 00:01:26] [%clk
00:10:13]} 21. Qf3 {[%emt 00:00:01] [%clk 00:03:34]} Bb7 {[%emt 00:02:47] [%clk
00:07:37]} 22. Qg3 {[%emt 00:00:01] [%clk 00:03:43]} Rad8 {[%emt 00:00:53] [%clk
00:06:55]} 23. h3 {[%emt 00:00:15] [%clk 00:03:38]} h6 {[%emt 00:00:55] [%clk
00:06:09]} 24. Rfe1 {[%emt 00:00:02] [%clk 00:03:46]} Qd6 {[%emt 00:00:19] [%clk
00:06:01]} 25. Qxd6 {[%emt 00:00:09] [%clk 00:03:46]} R8xd6 {[%emt 00:00:22]
[%clk 00:05:49]} 26. Bf1 {[%emt 00:00:04] [%clk 00:03:52]} Ba6 {[%emt 00:00:54]
[%clk 00:05:05]} 27. Bxa6 {[%emt 00:00:07] [%clk 00:03:55]} Rxa6 {[%emt
00:00:02] [%clk 00:05:13]} 28. Re3 {[%emt 00:00:07] [%clk 00:03:58]} Rd7 {[%emt
00:00:27] [%clk 00:04:57]} 29. g4 {[%emt 00:00:08] [%clk 00:04:00]} g5 {[%emt
00:00:06] [%clk 00:05:00]} 30. Kg2 {[%emt 00:00:03] [%clk 00:04:07]} Kg7 {[%emt
00:00:01] [%clk 00:05:09]} 31. Rc4 {[%emt 00:00:16] [%clk 00:04:01]} Rad6 {[%emt
00:00:08] [%clk 00:05:11]} 32. Ra4 {[%emt 00:00:06] [%clk 00:04:05]} Rd4 {[%emt
00:00:12] [%clk 00:05:10]} 33. Ra6 {[%emt 00:00:13] [%clk 00:04:02]} Rf4 {[%emt
00:00:42] [%clk 00:04:36]} 34. Rf3 {[%emt 00:00:03] [%clk 00:04:10]} Rc4 {[%emt
00:00:42] [%clk 00:04:04]} 35. Kg3 {[%emt 00:00:07] [%clk 00:04:14]} Rc1 {[%emt
00:00:11] [%clk 00:04:03]} 36. Kg2 {[%emt 00:00:03] [%clk 00:04:21]} Kg6 {[%emt
00:00:25] [%clk 00:03:47]} 37. Ra5 {[%emt 00:00:11] [%clk 00:04:20]} Rc6 {[%emt
00:00:29] [%clk 00:03:29]} 38. Kg3 {[%emt 00:00:04] [%clk 00:04:25]} a6 {[%emt
00:00:05] [%clk 00:03:34]} 39. h4 {[%emt 00:00:15] [%clk 00:04:20]} Rd5 {[%emt
00:00:14] [%clk 00:03:30]} 40. Ra4 {[%emt 00:00:20] [%clk 00:04:10]} a5 {[%emt
00:00:04] [%clk 00:03:36]} 41. hxg5 {[%emt 00:00:03] [%clk 00:04:17]} hxg5
{[%emt 00:00:02] [%clk 00:03:44]} 42. Kg2 {[%emt 00:00:24] [%clk 00:04:04]} f5
{[%emt 00:00:36] [%clk 00:03:17]} 43. gxf5+ {[%emt 00:00:04] [%clk 00:04:10]}
exf5 {[%emt 00:00:01] [%clk 00:03:26]} 44. Re3 {[%emt 00:00:56] [%clk 00:03:24]}
Rc2 {[%emt 00:00:42] [%clk 00:02:54]} 45. Re6+ {[%emt 00:00:04] [%clk 00:03:31]}
Kh5 {[%emt 00:00:29] [%clk 00:02:35]} 46. Re1 {[%emt 00:00:02] [%clk 00:03:39]}
g4 {[%emt 00:00:19] [%clk 00:02:26]} 47. Kg3 {[%emt 00:00:09] [%clk 00:03:39]}
Rc3+ {[%emt 00:00:21] [%clk 00:02:15]} 48. Re3 {[%emt 00:00:03] [%clk 00:03:47]}
Rxe3+ {[%emt 00:00:09] [%clk 00:02:16]} 49. fxe3 {[%emt 00:00:01] [%clk
00:03:56]} Kg5 {[%emt 00:00:05] [%clk 00:02:21]} 50. Kf2 {[%emt 00:01:32] [%clk
00:02:33]} Kh4 {[%emt 00:00:12] [%clk 00:02:19]} 51. e4 {[%emt 00:00:03] [%clk
00:02:40]} fxe4 {[%emt 00:00:40] [%clk 00:01:49]} 52. Rxe4 {[%emt 00:00:07]
[%clk 00:02:43]} Rd2+ {[%emt 00:01:12] [%clk 00:00:48]} 53. Kf1 {[%emt 00:02:20]
[%clk 00:00:33]} Ra2 {[%emt 00:00:13] [%clk 00:00:44]} 54. Ra4 {[%emt 00:00:03]
[%clk 00:00:40]} Kh3 {[%emt 00:00:10] [%clk 00:00:44]} 55. Rxa5 {[%emt 00:00:03]
[%clk 00:00:47]} Ra1+ {[%emt 00:00:08] [%clk 00:00:47]} 56. Ke2 {[%emt 00:00:06]
[%clk 00:00:51]} g3 {[%emt 00:00:03] [%clk 00:00:53]} 57. Ra8 {[%emt 00:00:09]
[%clk 00:00:53]} Ra2+ {[%emt 00:00:38] [%clk 00:00:25]} 58. Ke1 {[%emt 00:00:38]
[%clk 00:00:24]} g2 {[%emt 00:00:19] [%clk 00:00:16]} 59. Rh8+ {[%emt 00:00:07]
[%clk 00:00:28]} Kg3 {[%emt 00:00:02] [%clk 00:00:24]} 60. Rg8+ {[%emt 00:00:02]
[%clk 00:00:36]} Kf3 {[%emt 00:00:18] [%clk 00:00:16]} 61. Rf8+ {[%emt 00:00:03]
[%clk 00:00:43]} Ke3 {[%emt 00:00:03] [%clk 00:00:22]} 62. Re8+ {[%emt 00:00:01]
[%clk 00:00:52]} Kf3 {[%emt 00:00:19] [%clk 00:00:14]} 63. Rf8+ {[%emt 00:00:02]
[%clk 00:01:00]} Kg3 {[%emt 00:00:01] [%clk 00:00:23]} 64. Rg8+ {[%emt 00:00:01]
[%clk 00:01:08]} Kh2 {[%emt 00:00:01] [%clk 00:00:32]} 65. Rh8+ {[%emt 00:00:01]
[%clk 00:01:17]} Kg1 {[%clk 00:00:41]} 66. Ra8 {[%emt 00:00:42] [%clk 00:00:46]}
Rf2 {[%emt 00:00:02] [%clk 00:00:49]} 67. Ra4 {[%emt 00:00:44] [%clk 00:00:11]}
Kh2 {[%emt 00:00:37] [%clk 00:00:22]} 68. Rh4+ {[%emt 00:00:04] [%clk 00:00:17]}
Kg1 {[%emt 00:00:05] [%clk 00:00:27]} 69. a4 {[%emt 00:00:08] [%clk 00:00:20]}
Rf5 {[%emt 00:00:06] [%clk 00:00:31]} 70. Rh8 {[%emt 00:00:16] [%clk 00:00:13]}
Re5+ {[%emt 00:00:09] [%clk 00:00:32]} 71. Kd2 {[%clk 00:00:22]} Kf2 {[%emt
00:00:22] [%clk 00:00:20]} 72. Rf8 {[%emt 00:00:02] [%clk 00:00:31]} Kg3 {[%emt
00:00:02] [%clk 00:00:28]} 73. Rg8+ {[%emt 00:00:01] [%clk 00:00:39]} Kf3 {[%emt
00:00:03] [%clk 00:00:34]} 74. Kd3 {[%emt 00:00:37] [%clk 00:00:13]} Ra5 {[%emt
00:00:08] [%clk 00:00:37]} 75. Rf8 {[%emt 00:00:12] [%clk 00:00:11]} Kg3 {[%emt
00:00:01] [%clk 00:00:45]} 76. Rg8 {[%emt 00:00:02] [%clk 00:00:19]} Kf3 {[%emt
00:00:05] [%clk 00:00:50]} 77. Rf8 {[%emt 00:00:02] [%clk 00:00:28]} Kg4 {[%emt
00:00:08] [%clk 00:00:51]} 78. Rg8+ {[%emt 00:00:02] [%clk 00:00:36]} Rg5 {[%emt
00:00:02] [%clk 00:00:59]} 79. Kd4 {[%emt 00:00:03] [%clk 00:15:10]} 0-1

[Site "Europe Echecs"]

[Event "Championnat d'Europe Rapide"]
[Date "2024.12.08"]
[White "Fressinet, Laurent"]
[Black "Magold, Filip"]
[WhiteElo "2588"]
[BlackElo "2428"]
[Round "10.25"]
[Result "0-1"]
[TimeControl "900+10"]

1. d4 {[%emt 00:00:22] [%clk 00:14:58]} d5 {[%emt 00:00:10] [%clk 00:15:10]} 2.
Nf3 {[%emt 00:00:06] [%clk 00:15:01]} Nf6 {[%emt 00:00:02] [%clk 00:15:18]} 3.
g3 {[%emt 00:00:02] [%clk 00:15:10]} c6 {[%emt 00:00:02] [%clk 00:15:27]} 4. c4
{[%emt 00:00:02] [%clk 00:15:17]} Bf5 {[%emt 00:00:04] [%clk 00:15:33]} 5. Nc3
{[%emt 00:00:03] [%clk 00:15:24]} e6 {[%emt 00:00:02] [%clk 00:15:41]} 6. Qb3
{[%emt 00:00:01] [%clk 00:15:33]} Qb6 {[%clk 00:15:50]} 7. c5 {[%emt 00:00:02]
[%clk 00:15:42]} Qxb3 {[%emt 00:00:01] [%clk 00:15:58]} 8. axb3 {[%emt 00:00:02]
[%clk 00:15:51]} Be7 {[%clk 00:16:07]} 9. Bf4 {[%emt 00:00:22] [%clk 00:15:38]}
Nbd7 {[%emt 00:00:20] [%clk 00:15:57]} 10. b4 {[%emt 00:00:25] [%clk 00:15:23]}
h6 {[%emt 00:00:07] [%clk 00:16:00]} 11. h3 {[%emt 00:01:36] [%clk 00:13:57]} g5
{[%emt 00:01:30] [%clk 00:14:40]} 12. Bd2 {[%emt 00:00:02] [%clk 00:14:06]} O-O
{[%emt 00:00:43] [%clk 00:14:06]} 13. g4 {[%emt 00:00:58] [%clk 00:13:17]} Bg6
{[%emt 00:00:23] [%clk 00:13:53]} 14. h4 {[%emt 00:00:43] [%clk 00:12:45]} Ne4
{[%emt 00:00:14] [%clk 00:13:50]} 15. Nxe4 {[%emt 00:01:12] [%clk 00:11:43]}
Bxe4 {[%emt 00:00:15] [%clk 00:13:45]} 16. Rh3 {[%emt 00:03:42] [%clk 00:08:11]}
f6 {[%emt 00:01:58] [%clk 00:11:56]} 17. Bg2 {[%emt 00:01:20] [%clk 00:07:00]}
Kg7 {[%emt 00:03:37] [%clk 00:08:30]} 18. O-O-O {[%emt 00:01:10] [%clk
00:05:59]} b6 {[%emt 00:00:32] [%clk 00:08:09]} 19. hxg5 {[%emt 00:01:31] [%clk
00:04:38]} hxg5 {[%emt 00:00:20] [%clk 00:07:59]} 20. Ne1 {[%emt 00:00:14] [%clk
00:04:34]} Bg6 {[%emt 00:00:25] [%clk 00:07:44]} 21. Nc2 {[%emt 00:00:59] [%clk
00:03:45]} a5 {[%emt 00:01:40] [%clk 00:06:15]} 22. bxa5 {[%emt 00:00:02] [%clk
00:03:53]} bxc5 {[%emt 00:00:36] [%clk 00:05:49]} 23. dxc5 {[%emt 00:00:02]
[%clk 00:04:01]} Nxc5 {[%emt 00:00:25] [%clk 00:05:34]} 24. b4 {[%emt 00:00:47]
[%clk 00:03:23]} Na6 {[%emt 00:00:22] [%clk 00:05:23]} 25. e4 {[%emt 00:01:17]
[%clk 00:02:15]} e5 {[%emt 00:02:25] [%clk 00:03:09]} 26. exd5 {[%emt 00:01:05]
[%clk 00:01:20]} cxd5 {[%clk 00:03:18]} 27. Bxd5 {[%emt 00:00:30] [%clk
00:00:59]} Rac8 {[%emt 00:00:16] [%clk 00:03:12]} 28. Rc3 {[%emt 00:00:04] [%clk
00:01:04]} Nxb4 {[%emt 00:00:05] [%clk 00:03:18]} 29. Bb7 {[%emt 00:00:53] [%clk
00:00:21]} Na2+ {[%emt 00:01:34] [%clk 00:01:55]} 30. Kb2 {[%emt 00:00:02] [%clk
00:00:29]} Nxc3 {[%emt 00:00:01] [%clk 00:02:03]} 31. Bxc3 {[%emt 00:00:04]
[%clk 00:00:35]} Rc7 {[%clk 00:02:13]} 32. a6 {[%emt 00:00:23] [%clk 00:00:22]}
Rb8 {[%emt 00:00:16] [%clk 00:02:06]} 33. Ne3 {[%emt 00:00:07] [%clk 00:00:25]}
Bc5 {[%emt 00:01:07] [%clk 00:01:10]} 34. Ba5 {[%emt 00:00:23] [%clk 00:00:12]}
Rcxb7+ {[%emt 00:00:33] [%clk 00:00:46]} 35. axb7 {[%emt 00:00:02] [%clk
00:00:21]} Rxb7+ {[%clk 00:00:55]} 36. Kc3 {[%emt 00:00:16] [%clk 00:00:15]}
Bd4+ {[%emt 00:00:24] [%clk 00:00:41]} 37. Kc4 {[%emt 00:00:03] [%clk 00:00:22]}
Be4 {[%emt 00:00:35] [%clk 00:00:16]} 38. Be1 {[%emt 00:00:19] [%clk 00:00:13]}
Kg6 {[%emt 00:00:04] [%clk 00:00:22]} 39. Nd5 {[%emt 00:00:11] [%clk 00:00:12]}
Bf3 {[%emt 00:00:10] [%clk 00:00:22]} 0-1

[Site "Europe Echecs"]

[Event "Championnat d'Europe Rapide"]
[Date "2024.12.08"]
[White "Hamitevici, Vladimir"]
[Black "Lagarde, Maxime"]
[WhiteElo "2423"]
[BlackElo "2600"]
[Round "10.26"]
[Result "0-1"]
[TimeControl "900+10"]

1. Nf3 {[%emt 00:00:02] [%clk 00:15:17]} d6 {[%emt 00:00:04] [%clk 00:15:19]} 2.
d4 {[%emt 00:00:11] [%clk 00:15:14]} Nf6 {[%emt 00:00:02] [%clk 00:15:27]} 3. e3
{[%emt 00:00:43] [%clk 00:14:40]} Nbd7 {[%emt 00:00:21] [%clk 00:15:16]} 4. c4
{[%emt 00:01:04] [%clk 00:13:47]} e5 {[%emt 00:00:08] [%clk 00:15:18]} 5. Nc3
{[%emt 00:00:03] [%clk 00:13:53]} g6 {[%emt 00:00:16] [%clk 00:15:13]} 6. Be2
{[%emt 00:00:11] [%clk 00:13:52]} Bg7 {[%emt 00:00:01] [%clk 00:15:22]} 7. O-O
{[%emt 00:00:13] [%clk 00:13:49]} O-O {[%emt 00:00:03] [%clk 00:15:29]} 8. Qc2
{[%emt 00:00:16] [%clk 00:13:43]} Re8 {[%emt 00:00:06] [%clk 00:15:33]} 9. b4
{[%emt 00:00:25] [%clk 00:13:28]} Qe7 {[%emt 00:00:59] [%clk 00:14:44]} 10. Bb2
{[%emt 00:01:06] [%clk 00:12:32]} e4 {[%emt 00:00:09] [%clk 00:14:45]} 11. Nd2
{[%emt 00:00:04] [%clk 00:12:37]} Nf8 {[%emt 00:00:05] [%clk 00:14:51]} 12. Rfc1
{[%emt 00:00:15] [%clk 00:12:32]} Bf5 {[%emt 00:00:13] [%clk 00:14:49]} 13. a4
{[%emt 00:00:39] [%clk 00:12:03]} h5 {[%emt 00:00:05] [%clk 00:14:53]} 14. a5
{[%emt 00:01:03] [%clk 00:11:10]} Ne6 {[%emt 00:01:11] [%clk 00:13:52]} 15. Qd1
{[%emt 00:00:35] [%clk 00:10:46]} a6 {[%emt 00:00:30] [%clk 00:13:32]} 16. b5
{[%emt 00:00:28] [%clk 00:10:27]} h4 {[%emt 00:00:15] [%clk 00:13:27]} 17. h3
{[%emt 00:03:16] [%clk 00:07:21]} g5 {[%emt 00:02:19] [%clk 00:11:19]} 18. Nd5
{[%emt 00:00:52] [%clk 00:06:39]} Qd7 {[%emt 00:01:05] [%clk 00:10:24]} 19.
Nxf6+ {[%emt 00:02:02] [%clk 00:04:46]} Bxf6 {[%emt 00:00:02] [%clk 00:10:32]}
20. Bg4 {[%emt 00:00:03] [%clk 00:04:53]} Nc5 {[%emt 00:01:51] [%clk 00:08:51]}
21. Bxf5 {[%emt 00:00:37] [%clk 00:04:26]} Qxf5 {[%emt 00:00:02] [%clk
00:09:00]} 22. Qg4 {[%emt 00:00:02] [%clk 00:04:33]} Qg6 {[%emt 00:01:00] [%clk
00:08:10]} 23. Bc3 {[%emt 00:02:37] [%clk 00:02:06]} Nd3 {[%emt 00:00:06] [%clk
00:08:14]} 24. Rcb1 {[%emt 00:00:07] [%clk 00:02:09]} Re7 {[%emt 00:01:14] [%clk
00:07:10]} 25. bxa6 {[%emt 00:00:11] [%clk 00:02:08]} bxa6 {[%emt 00:00:01]
[%clk 00:07:19]} 26. Rb7 {[%emt 00:00:07] [%clk 00:02:11]} Bg7 {[%emt 00:00:02]
[%clk 00:07:27]} 27. Qe2 {[%emt 00:00:24] [%clk 00:01:57]} f5 {[%emt 00:00:32]
[%clk 00:07:06]} 28. f3 {[%emt 00:00:26] [%clk 00:01:40]} Nc5 {[%emt 00:01:15]
[%clk 00:06:01]} 29. dxc5 {[%clk 00:01:49]} Bxc3 {[%emt 00:00:02] [%clk
00:06:10]} 30. Rc1 {[%emt 00:00:05] [%clk 00:01:53]} exf3 {[%emt 00:01:48] [%clk
00:04:32]} 31. Nxf3 {[%emt 00:00:02] [%clk 00:02:01]} Bg7 {[%emt 00:00:41] [%clk
00:04:00]} 32. cxd6 {[%emt 00:00:25] [%clk 00:01:47]} Qxd6 {[%emt 00:00:01]
[%clk 00:04:09]} 33. c5 {[%emt 00:00:02] [%clk 00:01:56]} Qf6 {[%emt 00:00:47]
[%clk 00:03:31]} 34. c6 {[%emt 00:00:41] [%clk 00:01:25]} Rae8 {[%emt 00:00:17]
[%clk 00:03:25]} 35. Qxa6 {[%emt 00:00:04] [%clk 00:01:31]} Kh8 {[%emt 00:00:36]
[%clk 00:02:58]} 36. Qb5 {[%emt 00:01:14] [%clk 00:00:28]} g4 {[%emt 00:01:10]
[%clk 00:01:58]} 37. hxg4 {[%emt 00:00:02] [%clk 00:00:35]} fxg4 {[%emt
00:00:01] [%clk 00:02:07]} 38. Nh2 {[%emt 00:00:23] [%clk 00:00:23]} Rxe3 {[%emt
00:00:31] [%clk 00:01:45]} 39. Qh5+ {[%emt 00:00:06] [%clk 00:00:28]} Bh6 {[%emt
00:00:02] [%clk 00:01:53]} 40. Rf1 {[%emt 00:00:07] [%clk 00:00:30]} Qg5 {[%emt
00:00:39] [%clk 00:01:24]} 41. Qxg5 {[%emt 00:00:19] [%clk 00:00:22]} Bxg5
{[%emt 00:00:01] [%clk 00:01:33]} 42. Nxg4 {[%emt 00:00:01] [%clk 00:00:30]} Rg3
{[%clk 00:01:42]} 43. Nf2 {[%emt 00:00:16] [%clk 00:00:24]} Be3 {[%emt 00:00:10]
[%clk 00:01:42]} 44. Kh1 {[%emt 00:00:13] [%clk 00:00:21]} Rf8 {[%emt 00:00:20]
[%clk 00:01:33]} 45. Rb2 {[%emt 00:00:05] [%clk 00:00:25]} Rg5 {[%emt 00:00:07]
[%clk 00:01:36]} 46. Ra2 {[%emt 00:00:14] [%clk 00:00:22]} Rgf5 {[%emt 00:00:12]
[%clk 00:01:34]} 47. Kg1 {[%emt 00:00:04] [%clk 00:00:27]} R8f6 {[%emt 00:00:29]
[%clk 00:01:16]} 48. a6 {[%emt 00:00:14] [%clk 00:00:23]} Ba7 {[%emt 00:00:01]
[%clk 00:01:25]} 49. Rc2 {[%emt 00:00:15] [%clk 00:00:18]} Kg7 {[%emt 00:00:10]
[%clk 00:01:24]} 50. Rb2 {[%emt 00:00:15] [%clk 00:00:14]} Rxc6 {[%emt 00:00:17]
[%clk 00:01:17]} 51. Rd1 {[%emt 00:00:04] [%clk 00:00:19]} Rxa6 {[%emt 00:00:26]
[%clk 00:01:02]} 52. Rd7+ {[%emt 00:00:14] [%clk 00:00:15]} Kg6 {[%emt 00:00:01]
[%clk 00:01:11]} 53. Rxc7 {[%clk 00:00:23]} Bxf2+ {[%emt 00:00:07] [%clk
00:01:14]} 0-1

[Site "Europe Echecs"]

[Event "Championnat d'Europe Rapide"]
[Date "2024.12.08"]
[White "Pichot, Alan"]
[Black "Nikolovski, Nikola"]
[WhiteElo "2637"]
[BlackElo "2407"]
[Round "10.27"]
[Result "0-1"]
[TimeControl "900+10"]

1. e4 {[%emt 00:00:02] [%clk 00:15:17]} d5 {[%emt 00:00:09] [%clk 00:15:12]} 2.
exd5 {[%emt 00:00:03] [%clk 00:15:24]} Qxd5 {[%emt 00:00:02] [%clk 00:15:20]} 3.
Nc3 {[%emt 00:00:01] [%clk 00:15:32]} Qa5 {[%emt 00:00:02] [%clk 00:15:29]} 4.
d4 {[%emt 00:00:05] [%clk 00:15:36]} Nf6 {[%emt 00:00:02] [%clk 00:15:37]} 5.
Nf3 {[%emt 00:00:02] [%clk 00:15:44]} Bg4 {[%emt 00:00:03] [%clk 00:15:45]} 6.
h3 {[%emt 00:00:18] [%clk 00:15:36]} Bh5 {[%emt 00:00:02] [%clk 00:15:53]} 7. g4
{[%emt 00:00:44] [%clk 00:15:02]} Bg6 {[%emt 00:00:02] [%clk 00:16:01]} 8. Ne5
{[%emt 00:00:04] [%clk 00:15:08]} e6 {[%emt 00:00:42] [%clk 00:15:29]} 9. Bg2
{[%emt 00:00:47] [%clk 00:14:31]} Qa6 {[%emt 00:00:49] [%clk 00:14:49]} 10. h4
{[%emt 00:04:24] [%clk 00:10:18]} Bb4 {[%emt 00:00:31] [%clk 00:14:28]} 11. f3
{[%emt 00:02:22] [%clk 00:08:06]} Nd5 {[%emt 00:03:09] [%clk 00:11:30]} 12. Bd2
{[%emt 00:00:11] [%clk 00:08:04]} Bxc3 {[%emt 00:00:27] [%clk 00:11:12]} 13.
bxc3 {[%emt 00:00:04] [%clk 00:08:10]} f6 {[%emt 00:01:57] [%clk 00:09:25]} 14.
Nxg6 {[%emt 00:01:15] [%clk 00:07:05]} hxg6 {[%emt 00:00:02] [%clk 00:09:32]}
15. Kf2 {[%emt 00:01:02] [%clk 00:06:14]} Nc6 {[%emt 00:01:57] [%clk 00:07:46]}
16. Bf1 {[%emt 00:00:16] [%clk 00:06:08]} Qa3 {[%emt 00:01:08] [%clk 00:06:48]}
17. c4 {[%emt 00:00:29] [%clk 00:05:48]} Nde7 {[%emt 00:01:08] [%clk 00:05:50]}
18. c3 {[%emt 00:00:04] [%clk 00:05:54]} Qd6 {[%emt 00:01:36] [%clk 00:04:24]}
19. Rb1 {[%emt 00:01:35] [%clk 00:04:29]} b6 {[%emt 00:00:11] [%clk 00:04:24]}
20. Bd3 {[%emt 00:01:07] [%clk 00:03:32]} e5 {[%emt 00:00:05] [%clk 00:04:29]}
21. Qe2 {[%emt 00:00:23] [%clk 00:03:18]} O-O-O {[%emt 00:02:03] [%clk
00:02:36]} 22. c5 {[%emt 00:01:50] [%clk 00:01:38]} Qd7 {[%clk 00:02:45]} 23.
Bb5 {[%emt 00:00:04] [%clk 00:01:44]} exd4 {[%emt 00:00:20] [%clk 00:02:35]} 24.
cxd4 {[%emt 00:00:08] [%clk 00:01:45]} Kb8 {[%emt 00:00:55] [%clk 00:01:51]} 25.
Bf4 {[%emt 00:00:38] [%clk 00:01:17]} Nd5 {[%emt 00:00:54] [%clk 00:01:07]} 26.
Bd2 {[%emt 00:00:47] [%clk 00:00:40]} Nxd4 {[%emt 00:00:21] [%clk 00:00:56]} 27.
Bxd7 {[%emt 00:00:05] [%clk 00:00:45]} Nxe2 {[%emt 00:00:02] [%clk 00:01:04]}
28. c6 {[%emt 00:00:05] [%clk 00:00:49]} Nd4 {[%emt 00:00:41] [%clk 00:00:33]}
29. Rbe1 {[%emt 00:00:15] [%clk 00:00:44]} a6 {[%emt 00:00:22] [%clk 00:00:22]}
30. h5 {[%emt 00:00:24] [%clk 00:00:31]} gxh5 {[%emt 00:00:10] [%clk 00:00:21]}
31. gxh5 {[%emt 00:00:01] [%clk 00:00:40]} Ka7 {[%emt 00:00:13] [%clk 00:00:18]}
32. Re4 {[%emt 00:00:27] [%clk 00:00:22]} Nb5 {[%emt 00:00:03] [%clk 00:00:26]}
33. Rg4 {[%emt 00:00:06] [%clk 00:00:25]} Ne7 {[%emt 00:00:23] [%clk 00:00:14]}
34. Bf4 {[%emt 00:00:16] [%clk 00:00:19]} Rh7 {[%emt 00:00:10] [%clk 00:00:14]}
35. a4 {[%emt 00:00:12] [%clk 00:00:17]} Nd6 {[%emt 00:00:01] [%clk 00:00:23]}
36. Bxd6 {[%emt 00:00:04] [%clk 00:00:22]} cxd6 {[%emt 00:00:01] [%clk
00:00:32]} 37. Re1 {[%emt 00:00:08] [%clk 00:00:24]} Nd5 {[%emt 00:00:31] [%clk
00:00:12]} 38. Bf5 {[%emt 00:00:01] [%clk 00:00:33]} Rxh5 {[%emt 00:00:03] [%clk
00:00:19]} 39. Rxg7+ {[%emt 00:00:01] [%clk 00:00:41]} Kb8 {[%emt 00:00:11]
[%clk 00:00:18]} 40. Rb7+ {[%emt 00:00:21] [%clk 00:00:30]} Ka8 {[%emt 00:00:01]
[%clk 00:00:28]} 41. Be4 {[%emt 00:00:15] [%clk 00:00:25]} Rc8 {[%emt 00:00:17]
[%clk 00:00:20]} 42. Rc1 {[%emt 00:00:16] [%clk 00:00:18]} Re5 {[%emt 00:00:17]
[%clk 00:00:13]} 43. Rf7 {[%emt 00:00:07] [%clk 00:00:21]} Kb8 {[%emt 00:00:11]
[%clk 00:00:13]} 44. Rc2 {[%emt 00:00:18] [%clk 00:00:12]} Rc7 {[%emt 00:00:01]
[%clk 00:00:22]} 45. Rd7 {[%emt 00:00:04] [%clk 00:00:19]} f5 {[%emt 00:00:13]
[%clk 00:00:18]} 46. Bd3 {[%emt 00:00:17] [%clk 00:00:12]} Nb4 {[%emt 00:00:03]
[%clk 00:00:26]} 47. Rd8+ {[%emt 00:00:08] [%clk 00:00:15]} Rc8 {[%emt 00:00:12]
[%clk 00:00:23]} 48. Rxd6 {[%emt 00:00:12] [%clk 00:00:13]} Nxc2 {[%emt
00:00:04] [%clk 00:00:29]} 49. Bxa6 {[%emt 00:00:09] [%clk 00:00:14]} Rc7 {[%emt
00:00:13] [%clk 00:00:26]} 50. Bb5 {[%emt 00:00:14] [%clk 00:00:11]} Nb4 {[%emt
00:00:07] [%clk 00:00:28]} 0-1

[Site "Europe Echecs"]